[Event "Early-Titled-Tuesday-Blitz-March-05-2024"]
[Site "Chess.com"]
[Date "2024.03.05"]
[Round "3"]
[White "MikeSailer"]
[Black "ChempionBg"]
[Result "0-1"]
[WhiteElo "2171"]
[BlackElo "2403"]
[TimeControl "180+1"]
[EndTime "8:30:54 PST"]
[Termination "ChempionBg won by resignation"]

1. d4 {[%clk 0:02:54.6]} 1... Nf6 {[%clk 0:02:58]} 2. Nf3 {[%clk 0:02:53.5]}
2... g6 {[%clk 0:02:57]} 3. Bf4 {[%clk 0:02:51.7]} 3... Bg7 {[%clk 0:02:55.3]}
4. e3 {[%clk 0:02:50.4]} 4... O-O {[%clk 0:02:54.2]} 5. Be2 {[%clk 0:02:49.7]}
5... d6 {[%clk 0:02:53.3]} 6. O-O {[%clk 0:02:48.3]} 6... Nbd7 {[%clk
0:02:53.9]} 7. h3 {[%clk 0:02:47.9]} 7... b6 {[%clk 0:02:53.1]} 8. c4 {[%clk
0:02:47.7]} 8... Bb7 {[%clk 0:02:53.5]} 9. Nc3 {[%clk 0:02:44.9]} 9... Ne4
{[%clk 0:02:49.3]} 10. Nxe4 {[%clk 0:02:40.8]} 10... Bxe4 {[%clk 0:02:49.2]} 11.
Rc1 {[%clk 0:02:39.8]} 11... e5 {[%clk 0:02:43.5]} 12. Bh2 {[%clk 0:02:39.3]}
12... exd4 {[%clk 0:02:30.5]} 13. exd4 {[%clk 0:02:38.8]} 13... Re8 {[%clk
0:02:26.7]} 14. Re1 {[%clk 0:02:38]} 14... Qf6 {[%clk 0:02:17.3]} 15. Qa4 {[%clk
0:02:24]} 15... Nf8 {[%clk 0:02:08]} 16. Red1 {[%clk 0:02:20.1]} 16... Ne6
{[%clk 0:01:44.6]} 17. d5 {[%clk 0:01:55.1]} 17... Nc5 {[%clk 0:01:34.4]} 18.
Qc6 {[%clk 0:01:51.7]} 18... Qxb2 {[%clk 0:01:32.8]} 19. Bf1 {[%clk 0:01:25]}
19... Qxa2 {[%clk 0:00:50.1]} 20. Qxc7 {[%clk 0:01:05.6]} 20... Nb3 {[%clk
0:00:49.2]} 21. Ng5 {[%clk 0:00:52.7]} 21... Nxc1 {[%clk 0:00:22]} 22. Qxf7+
{[%clk 0:00:50.2]} 22... Kh8 {[%clk 0:00:22.2]} 23. Nxe4 {[%clk 0:00:39.7]}
23... Rxe4 {[%clk 0:00:18.2]} 24. Rxc1 {[%clk 0:00:38.4]} 24... Rf8 {[%clk
0:00:17.7]} 25. Qd7 {[%clk 0:00:18.3]} 25... Qxf2+ {[%clk 0:00:17.1]} 26. Kh1
{[%clk 0:00:18.6]} 26... Re1 {[%clk 0:00:16.5]} 0-1

[Event "Early-Titled-Tuesday-Blitz-March-05-2024"]
[Site "Chess.com"]
[Date "2024.03.05"]
[Round "3"]
[White "HansOnTwitch"]
[Black "bascheyaro"]
[Result "1/2-1/2"]
[WhiteElo "3108"]
[BlackElo "2784"]
[TimeControl "180+1"]
[EndTime "8:30:55 PST"]
[Termination "Game drawn by repetition"]

1. e4 {[%clk 0:03:00.9]} 1... e6 {[%clk 0:03:00.3]} 2. d4 {[%clk 0:03:00.7]}
2... d5 {[%clk 0:03:00.1]} 3. Nc3 {[%clk 0:03:01.4]} 3... Bb4 {[%clk 0:03:00]}
4. exd5 {[%clk 0:02:55.9]} 4... exd5 {[%clk 0:02:59.9]} 5. Bd3 {[%clk
0:02:56.6]} 5... Nf6 {[%clk 0:02:59.9]} 6. a3 {[%clk 0:02:54.9]} 6... Bd6 {[%clk
0:02:57]} 7. Nf3 {[%clk 0:02:46.7]} 7... O-O {[%clk 0:02:53.3]} 8. O-O {[%clk
0:02:46.7]} 8... Bg4 {[%clk 0:02:52.1]} 9. h3 {[%clk 0:02:46.7]} 9... Bh5 {[%clk
0:02:52]} 10. Bg5 {[%clk 0:02:41.8]} 10... c6 {[%clk 0:02:51.7]} 11. g4 {[%clk
0:02:40]} 11... Bg6 {[%clk 0:02:51.7]} 12. Ne5 {[%clk 0:02:38.7]} 12... Re8
{[%clk 0:02:33.4]} 13. Re1 {[%clk 0:02:38.3]} 13... Nbd7 {[%clk 0:02:21]} 14.
Bf4 {[%clk 0:02:17.9]} 14... Qc7 {[%clk 0:01:48.1]} 15. Nxd7 {[%clk 0:02:16.1]}
15... Qxd7 {[%clk 0:01:44.4]} 16. Be5 {[%clk 0:02:12.3]} 16... Ne4 {[%clk
0:01:39.3]} 17. Bxe4 {[%clk 0:01:46]} 17... Bxe4 {[%clk 0:01:34.5]} 18. Nxe4
{[%clk 0:01:44.3]} 18... dxe4 {[%clk 0:01:34.6]} 19. Rxe4 {[%clk 0:01:44.9]}
19... f6 {[%clk 0:01:33]} 20. Re3 {[%clk 0:01:45]} 20... Rad8 {[%clk 0:00:55]}
21. Bxd6 {[%clk 0:01:42.8]} 21... Rxe3 {[%clk 0:00:55.2]} 22. fxe3 {[%clk
0:01:43.4]} 22... Qxd6 {[%clk 0:00:55.9]} 23. Qf3 {[%clk 0:01:44]} 23... c5
{[%clk 0:00:56.1]} 24. c3 {[%clk 0:01:40]} 24... cxd4 {[%clk 0:00:53.4]} 25.
cxd4 {[%clk 0:01:37.1]} 25... Qc7 {[%clk 0:00:48]} 26. Rf1 {[%clk 0:01:36.1]}
26... b6 {[%clk 0:00:44.8]} 27. h4 {[%clk 0:01:32]} 27... h6 {[%clk 0:00:44.5]}
28. Rf2 {[%clk 0:01:29.6]} 28... Re8 {[%clk 0:00:41.8]} 29. Kg2 {[%clk
0:01:29.1]} 29... Kh8 {[%clk 0:00:38.4]} 30. g5 {[%clk 0:01:27.2]} 30... fxg5
{[%clk 0:00:24]} 31. hxg5 {[%clk 0:01:27.1]} 31... Qe7 {[%clk 0:00:18]} 32. gxh6
{[%clk 0:01:11.8]} 32... gxh6 {[%clk 0:00:17.8]} 33. Kf1 {[%clk 0:01:12.3]}
33... Qxe3 {[%clk 0:00:17.3]} 34. Qf6+ {[%clk 0:01:12.2]} 34... Kh7 {[%clk
0:00:18]} 35. Qf5+ {[%clk 0:00:58.6]} 35... Kh8 {[%clk 0:00:18.4]} 36. Qf6+
{[%clk 0:00:42.5]} 36... Kh7 {[%clk 0:00:18.6]} 37. Qf7+ {[%clk 0:00:43]} 37...
Kh8 {[%clk 0:00:19.1]} 38. Qf6+ {[%clk 0:00:24.1]} 1/2-1/2

[Event "Early-Titled-Tuesday-Blitz-March-05-2024"]
[Site "Chess.com"]
[Date "2024.03.05"]
[Round "3"]
[White "Keeper0416"]
[Black "yonaltimur"]
[Result "1-0"]
[WhiteElo "2576"]
[BlackElo "2357"]
[TimeControl "180+1"]
[EndTime "8:30:57 PST"]
[Termination "Keeper0416 won on time"]

1. e4 {[%clk 0:02:52.5]} 1... c5 {[%clk 0:02:59]} 2. Nc3 {[%clk 0:02:52.9]} 2...
Nc6 {[%clk 0:02:58.6]} 3. Nge2 {[%clk 0:02:53.4]} 3... e6 {[%clk 0:02:31.1]} 4.
g3 {[%clk 0:02:51.9]} 4... g6 {[%clk 0:02:25.9]} 5. Bg2 {[%clk 0:02:51.4]} 5...
Bg7 {[%clk 0:02:26.1]} 6. O-O {[%clk 0:02:52.3]} 6... Nge7 {[%clk 0:02:25.9]} 7.
d4 {[%clk 0:02:46.5]} 7... cxd4 {[%clk 0:02:16.5]} 8. Nb5 {[%clk 0:02:46.2]}
8... O-O {[%clk 0:02:14.7]} 9. Nexd4 {[%clk 0:02:40.3]} 9... Nxd4 {[%clk
0:02:11.7]} 10. Nxd4 {[%clk 0:02:41.2]} 10... d5 {[%clk 0:02:12.2]} 11. exd5
{[%clk 0:02:36.8]} 11... Nxd5 {[%clk 0:02:13.1]} 12. c3 {[%clk 0:02:19.4]} 12...
Ne7 {[%clk 0:01:30.5]} 13. Nb5 {[%clk 0:02:10.8]} 13... Qb6 {[%clk 0:01:04.6]}
14. a4 {[%clk 0:02:03.9]} 14... Rd8 {[%clk 0:00:28.2]} 15. Qe2 {[%clk
0:01:59.7]} 15... Nd5 {[%clk 0:00:11.2]} 16. Bg5 {[%clk 0:01:50]} 16... f6
{[%clk 0:00:09.8]} 17. Bxd5 {[%clk 0:01:44.3]} 17... Rxd5 {[%clk 0:00:08.1]} 18.
Be3 {[%clk 0:01:44.9]} 18... Qc6 {[%clk 0:00:07.7]} 19. Nxa7 {[%clk 0:01:40.7]}
19... Qe8 {[%clk 0:00:07.4]} 20. Nb5 {[%clk 0:01:39.4]} 20... Qf7 {[%clk
0:00:05.1]} 21. c4 {[%clk 0:01:34.1]} 21... Rd8 {[%clk 0:00:04.7]} 22. Bc5
{[%clk 0:01:27.9]} 22... e5 {[%clk 0:00:02]} 23. b3 {[%clk 0:01:25.2]} 23... Bd7
{[%clk 0:00:02]} 24. Nd6 {[%clk 0:01:25.4]} 24... Qe6 {[%clk 0:00:02.6]} 25. Nb5
{[%clk 0:01:19.3]} 25... Bxb5 {[%clk 0:00:02.2]} 26. axb5 {[%clk 0:01:20]} 26...
Rac8 {[%clk 0:00:02.6]} 27. Bb4 {[%clk 0:01:18]} 27... f5 {[%clk 0:00:02.7]} 28.
Ra7 {[%clk 0:01:13.3]} 28... Qb6 {[%clk 0:00:02.4]} 29. Ra2 {[%clk 0:01:13.9]}
29... e4 {[%clk 0:00:02.3]} 30. Ba5 {[%clk 0:01:14.5]} 30... Qc5 {[%clk
0:00:01.3]} 31. Bxd8 {[%clk 0:01:15]} 31... Rxd8 {[%clk 0:00:02.2]} 32. Rd1
{[%clk 0:01:15.6]} 32... Rxd1+ {[%clk 0:00:01.8]} 33. Qxd1 {[%clk 0:01:16.5]}
33... h6 {[%clk 0:00:02.5]} 34. Rd2 {[%clk 0:01:16.7]} 34... Kh7 {[%clk
0:00:02.7]} 35. Rd5 {[%clk 0:01:13.9]} 35... Qb6 {[%clk 0:00:02.9]} 36. Rd7
{[%clk 0:01:14.1]} 36... e3 {[%clk 0:00:03]} 37. Qe2 {[%clk 0:01:10.2]} 37...
exf2+ {[%clk 0:00:03.2]} 38. Qxf2 {[%clk 0:01:11.1]} 38... Qf6 {[%clk
0:00:03.4]} 39. Rxb7 {[%clk 0:01:06.3]} 39... Qa1+ {[%clk 0:00:03.1]} 40. Kg2
{[%clk 0:01:06.3]} 40... Qa8 {[%clk 0:00:03.8]} 41. Qf3 {[%clk 0:01:05.2]} 41...
Qa2+ {[%clk 0:00:04.4]} 42. Kh3 {[%clk 0:01:05.4]} 42... Qc2 {[%clk 0:00:01.8]}
43. Rf7 {[%clk 0:00:57.9]} 1-0

[Event "Early-Titled-Tuesday-Blitz-March-05-2024"]
[Site "Chess.com"]
[Date "2024.03.05"]
[Round "3"]
[White "Iball95"]
[Black "stolencandy13"]
[Result "1-0"]
[WhiteElo "2907"]
[BlackElo "2668"]
[TimeControl "180+1"]
[EndTime "8:30:58 PST"]
[Termination "Iball95 won by resignation"]

1. e4 {[%clk 0:02:58.7]} 1... c6 {[%clk 0:02:59.8]} 2. d4 {[%clk 0:02:59.3]}
2... d5 {[%clk 0:03:00.7]} 3. exd5 {[%clk 0:03:00.1]} 3... cxd5 {[%clk
0:03:01.1]} 4. c4 {[%clk 0:03:00.8]} 4... Nf6 {[%clk 0:03:01.1]} 5. Nc3 {[%clk
0:03:01.4]} 5... e6 {[%clk 0:02:59.6]} 6. c5 {[%clk 0:03:02.2]} 6... Be7 {[%clk
0:02:59.4]} 7. Bb5+ {[%clk 0:03:02.7]} 7... Bd7 {[%clk 0:02:56.1]} 8. Bxd7+
{[%clk 0:03:03]} 8... Nbxd7 {[%clk 0:02:50.8]} 9. Bf4 {[%clk 0:03:03.2]} 9...
O-O {[%clk 0:02:48.6]} 10. Nge2 {[%clk 0:03:03.4]} 10... Nh5 {[%clk 0:02:31.8]}
11. Be3 {[%clk 0:03:00.8]} 11... Rc8 {[%clk 0:02:16.4]} 12. O-O {[%clk
0:03:00.2]} 12... f5 {[%clk 0:02:10]} 13. Nf4 {[%clk 0:02:58.9]} 13... Nxf4
{[%clk 0:02:03.9]} 14. Bxf4 {[%clk 0:02:59.8]} 14... Bf6 {[%clk 0:01:59]} 15.
Re1 {[%clk 0:02:58.4]} 15... Re8 {[%clk 0:01:51.5]} 16. Nb5 {[%clk 0:02:51.5]}
16... g5 {[%clk 0:01:39.2]} 17. Bd2 {[%clk 0:02:49.7]} 17... a6 {[%clk
0:01:29.7]} 18. Nd6 {[%clk 0:02:49.4]} 18... Bxd4 {[%clk 0:01:29.2]} 19. Nxc8
{[%clk 0:02:41.2]} 19... Qxc8 {[%clk 0:01:27.1]} 20. Bxg5 {[%clk 0:02:41.6]}
20... Qxc5 {[%clk 0:01:24.3]} 21. Be3 {[%clk 0:02:41]} 21... Bxe3 {[%clk
0:01:13.1]} 22. Rxe3 {[%clk 0:02:41.9]} 22... Nf6 {[%clk 0:01:09.7]} 23. Rc1
{[%clk 0:02:37.5]} 23... Qd6 {[%clk 0:01:05.3]} 24. Rg3+ {[%clk 0:02:18.7]}
24... Kf7 {[%clk 0:01:04.5]} 25. Qb3 {[%clk 0:02:13]} 25... b5 {[%clk
0:01:00.7]} 26. a4 {[%clk 0:02:11.5]} 26... Qf4 {[%clk 0:00:54.4]} 27. Ra1
{[%clk 0:01:59.7]} 27... Rc8 {[%clk 0:00:38.8]} 28. Rc3 {[%clk 0:01:35.5]} 28...
Rxc3 {[%clk 0:00:29]} 29. Qxc3 {[%clk 0:01:36.4]} 29... bxa4 {[%clk 0:00:24.4]}
30. g3 {[%clk 0:01:34.7]} 30... Qd6 {[%clk 0:00:18.6]} 31. Rxa4 {[%clk
0:01:34.2]} 31... Ne4 {[%clk 0:00:18.8]} 32. Qh8 {[%clk 0:01:30.3]} 32... Qb6
{[%clk 0:00:16.7]} 33. Qxh7+ {[%clk 0:01:29.3]} 33... Kf6 {[%clk 0:00:17.2]} 34.
Qh6+ {[%clk 0:01:28.4]} 34... Kf7 {[%clk 0:00:17.4]} 35. Qh5+ {[%clk 0:01:24]}
35... Kf6 {[%clk 0:00:17]} 36. Qe2 {[%clk 0:01:24.6]} 36... a5 {[%clk
0:00:16.3]} 37. Kg2 {[%clk 0:01:22.1]} 37... Qc5 {[%clk 0:00:16.4]} 38. Qe3
{[%clk 0:01:17]} 38... Qb5 {[%clk 0:00:12.9]} 39. Ra2 {[%clk 0:00:58.6]} 39...
a4 {[%clk 0:00:12.3]} 40. Qa3 {[%clk 0:00:56.2]} 40... Nd2 {[%clk 0:00:12.3]}
41. Qc3+ {[%clk 0:00:53.9]} 41... e5 {[%clk 0:00:10.3]} 42. Qxd2 {[%clk
0:00:53.6]} 42... Qc4 {[%clk 0:00:10.8]} 43. Ra3 {[%clk 0:00:53.2]} 43... e4
{[%clk 0:00:10.6]} 44. Qc3+ {[%clk 0:00:52.7]} 1-0

[Event "Early-Titled-Tuesday-Blitz-March-05-2024"]
[Site "Chess.com"]
[Date "2024.03.05"]
[Round "3"]
[White "RandomNoob04"]
[Black "the_blue_pill"]
[Result "1-0"]
[WhiteElo "2574"]
[BlackElo "2351"]
[TimeControl "180+1"]
[EndTime "8:30:58 PST"]
[Termination "RandomNoob04 won by resignation"]

1. e4 {[%clk 0:03:00.9]} 1... c5 {[%clk 0:02:59.1]} 2. d4 {[%clk 0:03:01]} 2...
cxd4 {[%clk 0:02:58.1]} 3. c3 {[%clk 0:03:01.7]} 3... Nf6 {[%clk 0:02:57.6]} 4.
e5 {[%clk 0:03:01.9]} 4... Nd5 {[%clk 0:02:57.4]} 5. Nf3 {[%clk 0:03:02.8]} 5...
Nc6 {[%clk 0:02:53.7]} 6. Bc4 {[%clk 0:03:03.3]} 6... Nb6 {[%clk 0:02:48.3]} 7.
Bb3 {[%clk 0:03:03.8]} 7... d6 {[%clk 0:02:45.7]} 8. exd6 {[%clk 0:03:04.7]}
8... e6 {[%clk 0:02:43.9]} 9. cxd4 {[%clk 0:03:03.9]} 9... Bxd6 {[%clk
0:02:43.7]} 10. Nc3 {[%clk 0:03:03.1]} 10... O-O {[%clk 0:02:43.3]} 11. Bc2
{[%clk 0:03:01.6]} 11... Nd5 {[%clk 0:02:39.4]} 12. O-O {[%clk 0:02:51.5]} 12...
Ncb4 {[%clk 0:02:35.6]} 13. Bb1 {[%clk 0:02:51.2]} 13... Nf6 {[%clk 0:02:26.6]}
14. Bg5 {[%clk 0:02:49.6]} 14... Be7 {[%clk 0:02:26.2]} 15. a3 {[%clk
0:02:47.7]} 15... Nbd5 {[%clk 0:02:26.4]} 16. Qd3 {[%clk 0:02:46.4]} 16... g6
{[%clk 0:02:26.3]} 17. Ne5 {[%clk 0:02:40]} 17... Bd7 {[%clk 0:02:26.1]} 18. Ba2
{[%clk 0:02:27.1]} 18... Bc6 {[%clk 0:02:24.1]} 19. Nxc6 {[%clk 0:02:25.7]}
19... bxc6 {[%clk 0:02:25]} 20. Rfe1 {[%clk 0:02:20.9]} 20... Rb8 {[%clk
0:02:19]} 21. Re2 {[%clk 0:02:19.8]} 21... Nh5 {[%clk 0:02:12.4]} 22. Bh6 {[%clk
0:02:19.3]} 22... Nhf4 {[%clk 0:02:09.4]} 23. Qf3 {[%clk 0:02:08.6]} 23... Nxe2+
{[%clk 0:02:07.1]} 24. Nxe2 {[%clk 0:02:09.5]} 24... Rxb2 {[%clk 0:01:58.8]} 25.
Bxf8 {[%clk 0:01:43.7]} 25... Bxf8 {[%clk 0:01:51.6]} 26. Bc4 {[%clk 0:01:43.9]}
26... Qb6 {[%clk 0:01:44.7]} 27. Qd3 {[%clk 0:01:27.3]} 27... Bh6 {[%clk
0:01:29.3]} 28. g3 {[%clk 0:01:23]} 28... Rd2 {[%clk 0:01:21.8]} 29. Qe4 {[%clk
0:01:11.7]} 29... Bg7 {[%clk 0:01:03.4]} 30. Rb1 {[%clk 0:01:11.2]} 30... Rb2
{[%clk 0:01:03.4]} 31. Rc1 {[%clk 0:01:10.8]} 31... h6 {[%clk 0:00:58.1]} 32. h4
{[%clk 0:01:09.3]} 32... Qa5 {[%clk 0:00:56.8]} 33. h5 {[%clk 0:01:05.8]} 33...
Nf6 {[%clk 0:00:41.6]} 34. Qxc6 {[%clk 0:01:05.8]} 34... Qxh5 {[%clk 0:00:38.5]}
35. Nf4 {[%clk 0:01:00]} 35... Qa5 {[%clk 0:00:30]} 36. d5 {[%clk 0:00:35.7]}
36... exd5 {[%clk 0:00:30.3]} 37. Nxd5 {[%clk 0:00:35.4]} 37... Nxd5 {[%clk
0:00:30.4]} 38. Bxd5 {[%clk 0:00:35.1]} 38... Qd2 {[%clk 0:00:26.3]} 39. Rf1
{[%clk 0:00:34.7]} 39... Rb8 {[%clk 0:00:22.4]} 40. Qd7 {[%clk 0:00:34.2]} 40...
Rf8 {[%clk 0:00:22.5]} 41. Bxf7+ {[%clk 0:00:33.9]} 41... Rxf7 {[%clk
0:00:22.1]} 42. Qxd2 {[%clk 0:00:34.8]} 1-0

[Event "Early-Titled-Tuesday-Blitz-March-05-2024"]
[Site "Chess.com"]
[Date "2024.03.05"]
[Round "3"]
[White "corvachesky"]
[Black "NikitaShnadrygin"]
[Result "0-1"]
[WhiteElo "2429"]
[BlackElo "2614"]
[TimeControl "180+1"]
[EndTime "8:30:59 PST"]
[Termination "NikitaShnadrygin won by resignation"]

1. d4 {[%clk 0:02:55.8]} 1... d5 {[%clk 0:02:58.6]} 2. Nf3 {[%clk 0:02:55.7]}
2... Nc6 {[%clk 0:02:56.4]} 3. g3 {[%clk 0:02:53.8]} 3... Bf5 {[%clk 0:02:56]}
4. Bg2 {[%clk 0:02:53.4]} 4... Qd7 {[%clk 0:02:52.6]} 5. c4 {[%clk 0:02:52]}
5... e6 {[%clk 0:02:50.1]} 6. Nc3 {[%clk 0:02:51.1]} 6... O-O-O {[%clk
0:02:43.2]} 7. Qa4 {[%clk 0:02:47.2]} 7... f6 {[%clk 0:02:38.6]} 8. c5 {[%clk
0:02:43.7]} 8... Kb8 {[%clk 0:02:31.9]} 9. b4 {[%clk 0:02:42.8]} 9... e5 {[%clk
0:02:32.2]} 10. e3 {[%clk 0:02:41.7]} 10... exd4 {[%clk 0:02:28.5]} 11. exd4
{[%clk 0:02:41.6]} 11... Re8+ {[%clk 0:02:27.5]} 12. Be3 {[%clk 0:02:37.9]}
12... Nh6 {[%clk 0:02:26.1]} 13. b5 {[%clk 0:02:33.2]} 13... Nd8 {[%clk
0:02:23.9]} 14. c6 {[%clk 0:02:26.8]} 14... Qc8 {[%clk 0:02:18.6]} 15. Nxd5
{[%clk 0:02:07.6]} 15... Be4 {[%clk 0:02:11.7]} 16. Nc3 {[%clk 0:02:03.1]} 16...
Nf5 {[%clk 0:01:58.9]} 17. Nxe4 {[%clk 0:01:59.2]} 17... Rxe4 {[%clk 0:01:58.5]}
18. Bh3 {[%clk 0:01:41.7]} 18... g5 {[%clk 0:01:52.7]} 19. cxb7 {[%clk
0:01:28.2]} 19... Qxb7 {[%clk 0:01:48.2]} 20. O-O {[%clk 0:00:57.6]} 20... g4
{[%clk 0:01:44.1]} 21. Bg2 {[%clk 0:00:48.7]} 21... gxf3 {[%clk 0:01:31.6]} 22.
Bxf3 {[%clk 0:00:49.6]} 22... Nxe3 {[%clk 0:01:30.5]} 23. fxe3 {[%clk
0:00:47.8]} 23... f5 {[%clk 0:01:31]} 24. Qc2 {[%clk 0:00:39.4]} 24... Bd6
{[%clk 0:01:27.1]} 25. Bxe4 {[%clk 0:00:37.8]} 25... Qxe4 {[%clk 0:01:25.4]} 26.
Qxe4 {[%clk 0:00:37.4]} 26... fxe4 {[%clk 0:01:26.3]} 27. a4 {[%clk 0:00:31.9]}
27... Ne6 {[%clk 0:01:26.3]} 28. h4 {[%clk 0:00:26.6]} 28... Rg8 {[%clk
0:01:25.4]} 29. Rf6 {[%clk 0:00:20.9]} 29... Rxg3+ {[%clk 0:01:25.3]} 30. Kf2
{[%clk 0:00:20.6]} 30... Ng7 {[%clk 0:01:26.1]} 31. Rg1 {[%clk 0:00:18.4]} 31...
Nh5 {[%clk 0:01:11.5]} 32. Rh6 {[%clk 0:00:14.3]} 32... Rf3+ {[%clk 0:01:10.8]}
33. Ke2 {[%clk 0:00:13.9]} 33... Ng3+ {[%clk 0:01:11]} 34. Kd1 {[%clk
0:00:11.9]} 34... Rxe3 {[%clk 0:01:10.5]} 35. Rxh7 {[%clk 0:00:11.7]} 35... Rd3+
{[%clk 0:01:09.8]} 36. Kc2 {[%clk 0:00:12.1]} 36... Rxd4 {[%clk 0:01:07.1]} 37.
h5 {[%clk 0:00:12.7]} 37... e3 {[%clk 0:01:07.4]} 38. h6 {[%clk 0:00:12.6]}
38... e2 {[%clk 0:01:07.4]} 39. Rh8+ {[%clk 0:00:12.8]} 39... Kb7 {[%clk
0:01:07.9]} 40. Re8 {[%clk 0:00:13.2]} 40... Rh4 {[%clk 0:01:06.1]} 41. Re3
{[%clk 0:00:11.1]} 41... Rxh6 {[%clk 0:01:05.7]} 42. Kd3 {[%clk 0:00:07.3]}
42... Rf6 {[%clk 0:01:01]} 43. a5 {[%clk 0:00:03.9]} 43... Rf1 {[%clk
0:01:00.6]} 44. Rxe2 {[%clk 0:00:04.3]} 44... Rxg1 {[%clk 0:00:59.1]} 0-1

[Event "Early-Titled-Tuesday-Blitz-March-05-2024"]
[Site "Chess.com"]
[Date "2024.03.05"]
[Round "3"]
[White "Mops_2004"]
[Black "Kolle05"]
[Result "1-0"]
[WhiteElo "2852"]
[BlackElo "2583"]
[TimeControl "180+1"]
[EndTime "8:31:02 PST"]
[Termination "Mops_2004 won by resignation"]

1. g3 {[%clk 0:03:00.9]} 1... Nf6 {[%clk 0:02:59.9]} 2. Bg2 {[%clk 0:03:00.7]}
2... g6 {[%clk 0:03:00.5]} 3. d4 {[%clk 0:03:00.5]} 3... Bg7 {[%clk 0:03:00.8]}
4. e4 {[%clk 0:03:00.9]} 4... O-O {[%clk 0:02:59.8]} 5. Nc3 {[%clk 0:03:00.8]}
5... d6 {[%clk 0:02:59.6]} 6. Nf3 {[%clk 0:02:59.9]} 6... c5 {[%clk 0:02:58.9]}
7. h3 {[%clk 0:03:00]} 7... cxd4 {[%clk 0:02:43]} 8. Nxd4 {[%clk 0:03:00.2]}
8... Nc6 {[%clk 0:02:43.4]} 9. Be3 {[%clk 0:03:00.4]} 9... Bd7 {[%clk
0:02:42.5]} 10. a4 {[%clk 0:03:00.2]} 10... a6 {[%clk 0:02:42.3]} 11. Nde2
{[%clk 0:02:54]} 11... Rc8 {[%clk 0:02:41.6]} 12. O-O {[%clk 0:02:51.7]} 12...
Ne5 {[%clk 0:02:33.9]} 13. b3 {[%clk 0:02:51.7]} 13... Nc6 {[%clk 0:02:11.1]}
14. Qd2 {[%clk 0:02:49.3]} 14... Qa5 {[%clk 0:02:08.6]} 15. g4 {[%clk
0:02:25.2]} 15... Qb4 {[%clk 0:01:39.6]} 16. Rad1 {[%clk 0:02:10.1]} 16... b5
{[%clk 0:01:33.6]} 17. axb5 {[%clk 0:02:10]} 17... axb5 {[%clk 0:01:34.5]} 18.
g5 {[%clk 0:02:05.7]} 18... Nh5 {[%clk 0:01:32.2]} 19. Nd5 {[%clk 0:02:03.3]}
19... Qxd2 {[%clk 0:01:31.6]} 20. Rxd2 {[%clk 0:02:04]} 20... Rfd8 {[%clk
0:01:29.4]} 21. c3 {[%clk 0:01:43.3]} 21... Be6 {[%clk 0:01:18.5]} 22. f4 {[%clk
0:01:16]} 22... b4 {[%clk 0:01:09.6]} 23. c4 {[%clk 0:01:05.6]} 23... Ra8 {[%clk
0:00:54.4]} 24. Rb1 {[%clk 0:00:49.4]} 24... Ra3 {[%clk 0:00:51.9]} 25. e5
{[%clk 0:00:43.4]} 25... Na5 {[%clk 0:00:40.6]} 26. Nxe7+ {[%clk 0:00:33.8]}
26... Kf8 {[%clk 0:00:40.5]} 27. Nc6 {[%clk 0:00:34.1]} 27... Nxc6 {[%clk
0:00:29]} 28. Bxc6 {[%clk 0:00:34.3]} 28... Bxc4 {[%clk 0:00:29]} 29. Nd4 {[%clk
0:00:25]} 29... dxe5 {[%clk 0:00:21.6]} 30. Ne6+ {[%clk 0:00:25]} 30... Bxe6
{[%clk 0:00:21.6]} 31. Rxd8+ {[%clk 0:00:25.6]} 31... Ke7 {[%clk 0:00:22.3]} 32.
Rbd1 {[%clk 0:00:23.4]} 32... f5 {[%clk 0:00:14]} 33. Bc5+ {[%clk 0:00:21]}
33... Kf7 {[%clk 0:00:14.4]} 34. Be8+ {[%clk 0:00:18.3]} 34... Kg8 {[%clk
0:00:13.6]} 35. Bxg6+ {[%clk 0:00:18.5]} 1-0

[Event "Early-Titled-Tuesday-Blitz-March-05-2024"]
[Site "Chess.com"]
[Date "2024.03.05"]
[Round "3"]
[White "jk13"]
[Black "Jumbo"]
[Result "0-1"]
[WhiteElo "2682"]
[BlackElo "2931"]
[TimeControl "180+1"]
[EndTime "8:31:05 PST"]
[Termination "Jumbo won by resignation"]

1. e4 {[%clk 0:03:00.9]} 1... c5 {[%clk 0:02:59.6]} 2. c3 {[%clk 0:03:01.4]}
2... Nf6 {[%clk 0:02:58.8]} 3. e5 {[%clk 0:03:01.8]} 3... Nd5 {[%clk 0:02:59.4]}
4. Bc4 {[%clk 0:03:02.6]} 4... Nb6 {[%clk 0:02:59.3]} 5. Bb3 {[%clk 0:03:03.3]}
5... d5 {[%clk 0:02:57.6]} 6. exd6 {[%clk 0:03:04.2]} 6... Qxd6 {[%clk
0:02:55.6]} 7. Nf3 {[%clk 0:03:04.8]} 7... Be6 {[%clk 0:02:52.8]} 8. O-O {[%clk
0:03:03.7]} 8... Bxb3 {[%clk 0:02:44.7]} 9. axb3 {[%clk 0:03:04.6]} 9... Nc6
{[%clk 0:02:40.9]} 10. Na3 {[%clk 0:03:05.2]} 10... Qd3 {[%clk 0:02:21.5]} 11.
Re1 {[%clk 0:02:53.8]} 11... e6 {[%clk 0:02:10.6]} 12. Re3 {[%clk 0:02:46.5]}
12... Qd7 {[%clk 0:02:10.8]} 13. Nc4 {[%clk 0:02:37.8]} 13... Rd8 {[%clk
0:01:59.9]} 14. Nxb6 {[%clk 0:02:23.2]} 14... axb6 {[%clk 0:01:53.4]} 15. Ra4
{[%clk 0:02:16.2]} 15... Be7 {[%clk 0:01:48.9]} 16. d3 {[%clk 0:01:56]} 16... b5
{[%clk 0:01:24]} 17. Rg4 {[%clk 0:01:48.5]} 17... g6 {[%clk 0:01:23.4]} 18. Rge4
{[%clk 0:01:48.1]} 18... Bf6 {[%clk 0:01:18.8]} 19. h4 {[%clk 0:01:39]} 19... h6
{[%clk 0:01:14.2]} 20. Ne1 {[%clk 0:01:10.1]} 20... Ne7 {[%clk 0:01:11.3]} 21.
Rf3 {[%clk 0:00:55.2]} 21... Bg7 {[%clk 0:01:07.2]} 22. Be3 {[%clk 0:00:49.4]}
22... Qc6 {[%clk 0:01:07.1]} 23. Qe2 {[%clk 0:00:48.8]} 23... O-O {[%clk
0:01:02.2]} 24. Bf4 {[%clk 0:00:42.2]} 24... Rd5 {[%clk 0:00:25.4]} 25. Be5
{[%clk 0:00:41]} 25... Qd7 {[%clk 0:00:20.3]} 26. Bxg7 {[%clk 0:00:38.6]} 26...
Kxg7 {[%clk 0:00:21.2]} 27. g3 {[%clk 0:00:29.3]} 27... Nc6 {[%clk 0:00:20.5]}
28. Nc2 {[%clk 0:00:25.2]} 28... Rd8 {[%clk 0:00:16.8]} 29. Kg2 {[%clk
0:00:23.5]} 29... Rxd3 {[%clk 0:00:13.8]} 30. Ne3 {[%clk 0:00:19.3]} 30... Rd2
{[%clk 0:00:13.5]} 31. Qxb5 {[%clk 0:00:19.5]} 31... f5 {[%clk 0:00:09.5]} 32.
Ra4 {[%clk 0:00:18.2]} 32... Ne5 {[%clk 0:00:09.5]} 33. Qxd7+ {[%clk 0:00:16.6]}
33... R8xd7 {[%clk 0:00:10.4]} 34. Rff4 {[%clk 0:00:16.9]} 34... Nd3 {[%clk
0:00:10.2]} 35. Rf3 {[%clk 0:00:17.1]} 35... Ne1+ {[%clk 0:00:10.7]} 0-1